bitfinex-derivatives/quotes_ETHF0:USTF0_20251024
["timestamp","ask_amount","ask_price","bid_price","bid_amount"]
[1761281172880,3.17315248,3974.7,3974.2,9.35]
[1761281172881,0.412,3974.4,3974.2,9.35]
[1761281173174,0.412,3974.4,3973.7,0.45288]
[1761281173381,0.412,3974.4,3974.2,2.49672949]
[1761281173582,1.1184,3973.8,3973.6,3.2078]
[1761281173780,1.1184,3973.1,3972.6,3.2078]
[1761281173979,1.1184,3973.1,3972.8,0.03461759]
[1761281174174,1.1184,3973.1,3972.9,2.49672949]
[1761281174573,1.1184,3973.1,3972.8,0.03461759]
[1761281174876,1.1184,3973.1,3972.9,0.03461759]
[1761281175979,1.1184,3973.1,3973.0,0.03461759]
[1761281176174,1.1184,3973.1,3972.6,0.00246363]
[1761281176381,0.412,3972.5,3971.8,3.2078]
[1761281176576,1.1184,3971.7,3971.4,9.4888]
[1761281177081,1.1184,3971.7,3971.4,3.2078]
[1761281177271,1.1184,3971.7,3970.9,3.2078]
[1761281177470,1.1184,3971.0,3970.9,11.48316657]
[1761281178376,1.1184,3971.0,3970.9,0.00236657]
[1761281179080,1.1184,3971.0,3970.9,3.21016657]
[1761281179274,1.1184,3971.0,3970.9,0.00236657]
[1761281179973,1.1184,3970.9,3970.5,3.2078]
[1761281180379,0.412,3970.4,3970.1,3.2078]
[1761281180684,1.1184,3969.6,3969.2,3.2078]
[1761281180981,1.1184,3969.6,3969.2,3.21083754]
[1761281181181,1.1184,3969.6,3969.2,3.66421754]
[1761281181371,1.1184,3969.6,3969.2,3.21083754]
[1761281182572,0.412,3969.0,3967.8,3.68655288]
[1761281182774,1.1184,3968.2,3967.8,0.02520288]
[1761281182978,1.1184,3967.5,3967.4,3.17047708]
[1761281183174,1.1184,3967.5,3966.9,3.66146]
[1761281183384,1.1184,3967.5,3967.4,3.2078]
[1761281183574,1.12144079,3967.5,3967.4,3.21080336]
[1761281184172,5.00304079,3967.5,3966.9,3.2078]
[1761281184374,1.08374734,3967.4,3966.9,3.2078]
[1761281184984,1.08374734,3967.4,3967.0,0.45364]
[1761281185182,1.08374734,3967.4,3967.3,3.2078]
[1761281185380,1.08374734,3967.4,3967.0,0.00294057]
[1761281185782,5.0,3967.3,3967.0,0.00294057]
[1761281185983,3.2078,3967.1,3966.1,3.2078]
[1761281186181,0.412,3966.4,3966.1,3.2078]
[1761281186373,1.1184,3966.3,3965.6,3.2078]
[1761281186680,0.412,3965.6,3965.2,3.2078]
[1761281186887,1.1184,3965.5,3965.2,3.2078]
[1761281187085,1.1184,3965.5,3965.2,0.00189011]
[1761281187781,3.6198,3965.6,3963.9,8.26601221]
[1761281187782,1.2276,3964.7,3963.9,8.26601221]
[1761281187978,1.2276,3964.7,3964.4,3.2078]
[1761281188286,1.7169,3964.0,3963.9,8.26601221]
[1761281188475,0.4893,3964.8,3963.9,8.26601221]
[1761281188476,1.2276,3964.7,3963.9,8.26601221]
[1761281188678,1.22990884,3964.7,3964.6,3.2078]
[1761281189486,1.22990884,3964.7,3964.1,0.45398]
[1761281189880,1.22990884,3964.7,3964.0,3.2078]
[1761281190783,1.136,3964.6,3964.0,3.2078]
[1761281191286,1.136,3964.5,3964.0,3.2078]
[1761281191482,1.136,3964.5,3963.9,0.00294993]
[1761281191683,1.6137,3964.0,3963.9,0.00294993]
[1761281193881,1.6137,3964.0,3962.8,3.23303468]
[1761281193882,1.136,3963.1,3962.8,3.23303468]
[1761281194583,1.136,3963.1,3962.9,0.03468868]
[1761281194988,1.136,3963.1,3962.9,0.03688821]
[1761281195478,1.136,3963.1,3962.9,0.49099821]
[1761281195675,1.136,3963.1,3963.0,0.03468868]
[1761281197493,1.136,3963.5,3963.4,0.45406]
[1761281197689,1.136,3963.5,3963.4,6.19327817]
[1761281197891,1.136,3963.5,3963.4,5.73921817]
[1761281198095,1.136,3963.5,3963.4,3.24248868]
[1761281198485,1.136,3963.5,3963.4,0.03468868]
[1761281199191,1.136,3962.3,3962.1,3.2078]
[1761281199589,1.136,3962.3,3962.2,0.45419]
[1761281200196,1.136,3962.3,3962.2,0.45616871]
[1761281200996,0.4777,3963.2,3962.4,0.45416]
[1761281201194,0.4777,3963.2,3962.5,3.2078]
[1761281201394,1.136,3963.1,3962.5,3.2078]
[1761281201693,1.136,3963.1,3962.7,0.45413]
[1761281201893,1.136,3963.1,3962.5,3.2078]
[1761281201894,1.136,3963.1,3962.9,0.45411]
[1761281202094,1.136,3963.1,3962.6,0.45414]
[1761281203291,1.136,3963.1,3962.4,0.45417]
[1761281203498,1.6137,3962.4,3962.2,0.00197871]
[1761281203799,1.6137,3962.4,3962.3,0.45418]
[1761281204190,1.6137,3962.4,3962.2,0.00197871]
[1761281204191,1.136,3962.3,3962.2,0.00197871]
[1761281205595,0.4777,3962.4,3962.3,0.45418]
[1761281205800,1.6137,3962.4,3962.3,0.45418]
[1761281206501,1.6137,3962.4,3962.3,0.41418]
[1761281207194,1.136,3962.3,3962.2,0.00197871]
[1761281208495,1.136,3962.2,3962.1,3.2078]
[1761281209495,1.136,3962.2,3962.1,3.21081877]
[1761281209691,0.4777,3961.3,3961.0,3.2078]
[1761281210000,1.136,3961.2,3961.0,3.2078]
[1761281210798,1.1385818,3961.2,3961.0,3.21028134]
[1761281211297,1.1385818,3961.2,3961.0,3.66460134]
[1761281212192,1.1385818,3961.2,3961.0,3.21028134]
[1761281212594,1.1385818,3961.2,3961.0,3.66461134]
[1761281213403,1.1385818,3961.2,3961.0,3.21028134]
[1761281213797,2.97442949,3962.4,3961.0,3.21028134]
[1761281213798,25.9198,3964.1,3962.6,1.13537]
[1761281214003,0.4777,3965.5,3964.0,2.49672949]
[1761281214198,0.4777,3965.5,3964.6,2.49672949]
[1761281214396,3.2078,3965.1,3964.6,2.49672949]
[1761281214596,3.2078,3965.1,3964.3,3.2078]
[1761281214902,3.2078,3965.1,3964.6,0.00194345]
[1761281214903,3.2078,3964.7,3964.6,0.00194345]
[1761281215098,3.17311132,3964.7,3964.6,0.00194345]
[1761281215304,0.00280496,3965.1,3964.6,0.00194345]
[1761281215698,1.136,3965.0,3964.6,0.00194345]
[1761281215899,1.136,3964.9,3964.6,0.00194345]
[1761281216402,0.00280496,3965.1,3965.0,0.45387]
[1761281216705,0.00280496,3965.1,3965.0,5.55485948]
[1761281216900,1.13880496,3965.1,3965.0,3.85418948]
[1761281219297,1.13880496,3965.1,3965.0,3.85318948]
[1761281220408,0.00280496,3965.1,3965.0,5.13698948]
[1761281220706,0.00280496,3965.1,3965.0,7.63371897]
[1761281221297,1.26160496,3965.1,3965.0,3.85318948]
[1761281222007,0.00280496,3965.1,3965.0,5.13698948]
[1761281222406,0.00280496,3965.1,3965.0,4.4906]
[1761281222611,0.00280496,3965.1,3965.0,5.1360821]
[1761281222909,0.00280496,3965.1,3965.0,4.4906]
[1761281225310,0.00280496,3965.1,3965.0,4.52528868]
[1761281227005,0.00280496,3965.1,3965.0,13.90328868]
[1761281227811,0.00280496,3965.1,3965.0,4.52528868]
[1761281228011,0.00280496,3965.1,3965.0,13.90028868]
[1761281228213,0.00280496,3965.1,3965.0,4.52528868]
[1761281228509,0.00280496,3965.1,3965.0,13.89828868]
[1761281228709,0.00280496,3965.1,3965.0,4.52528868]
[1761281229011,0.00280496,3965.1,3965.0,13.89728868]
[1761281229212,0.00280496,3965.1,3965.0,4.52528868]
[1761281229604,0.00280496,3965.1,3965.0,13.89228868]
[1761281229815,0.00280496,3965.1,3965.0,4.52528868]
[1761281230112,0.00280496,3965.1,3965.0,13.88928868]
[1761281231513,0.00280496,3965.1,3965.0,13.88828868]
[1761281232110,0.00280496,3965.1,3965.0,13.88728868]
[1761281232505,0.00280496,3965.1,3965.0,13.88628868]
[1761281232907,0.00280496,3965.1,3965.0,4.52228868]
[1761281232908,1.26160496,3965.1,3965.0,4.52228868]
[1761281233112,1.26160496,3965.1,3965.0,4.52128868]
[1761281233310,1.26160496,3965.1,3965.0,3.23748868]
[1761281233617,1.2588,3964.7,3964.6,0.00094345]
[1761281233800,1.2588,3964.6,3963.7,3.2078]
[1761281234003,3.2078,3964.7,3964.1,3.78052949]
[1761281234004,1.2588,3964.7,3964.1,3.78052949]
[1761281234204,1.2588,3964.7,3964.4,1.2838]
[1761281234403,1.2588,3964.7,3964.4,0.45393]
[1761281234610,1.2588,3964.7,3964.5,1.73772]
[1761281234810,1.2588,3964.7,3964.5,0.45590614]
[1761281235216,1.2588,3964.7,3964.5,0.45490614]
[1761281235609,1.2588,3964.7,3964.6,0.03468868]
[1761281235803,1.26160496,3965.1,3964.6,0.03468868]
[1761281236012,1.2588,3965.9,3965.3,0.45383]
[1761281236206,1.2588,3965.9,3965.5,0.45381]
[1761281236510,1.2588,3965.9,3965.7,0.45379]
[1761281236812,1.2588,3966.7,3966.4,0.45371]
[1761281237207,1.26104494,3966.7,3966.1,9.364]
[1761281237503,1.26104494,3966.7,3966.2,1.2838]
[1761281237706,1.26104494,3966.7,3966.4,1.77218868]
[1761281238117,1.26104494,3966.7,3966.5,0.45369]
[1761281238321,0.00224494,3966.7,3966.6,1.2838]
[1761281238525,0.4838,3967.6,3966.4,0.03468868]
[1761281238526,1.2588,3968.5,3967.7,0.45357]
[1761281238815,3.2078,3968.6,3968.3,1.2838]
[1761281239021,1.2588,3969.0,3968.5,1.2838]
[1761281239206,4.4666,3969.6,3968.6,1.73726]
[1761281239410,4.4666,3969.6,3969.1,0.45341]
[1761281239713,4.4666,3969.6,3969.0,2.86663224]
[1761281239714,3.2078,3969.6,3969.3,1.31848868]
[1761281239914,1.2588,3969.5,3969.3,0.03468868]
[1761281240313,0.00314091,3969.6,3969.3,1.31848868]
[1761281240715,0.00314091,3969.6,3969.3,1.31748868]
[1761281241319,4.95354091,3969.6,3969.3,0.03268868]
[1761281241525,1.2588,3969.5,3969.4,9.375]
[1761281241822,1.2588,3969.5,3969.4,9.374]
[1761281242317,0.00314091,3969.6,3969.5,1.2838]
[1761281242714,1.26194091,3969.6,3969.4,0.03268868]
[1761281243422,1.26194091,3969.6,3969.5,0.03268868]
[1761281244320,1.2588,3969.5,3969.0,0.00211866]
[1761281244614,4.4666,3969.1,3969.0,0.00211866]
[1761281244819,1.2588,3969.1,3969.0,0.00211866]
[1761281245014,3.2078,3969.5,3969.0,0.00211866]
[1761281245015,1.2588,3969.4,3969.0,0.00211866]
[1761281245214,4.4666,3969.1,3969.0,0.00211866]
[1761281245909,4.4666,3969.1,3969.0,0.03677703]
[1761281247821,1.2588,3969.1,3969.0,0.03677703]
[1761281251223,3.69474091,3969.6,3969.0,1.15847703]
[1761281251407,1.0486,3969.5,3969.0,0.03677703]
[1761281252109,1.0486,3969.5,3969.2,0.03465837]
[1761281252314,1.0486,3969.5,3969.3,1.1217]
[1761281252511,3.21094091,3969.6,3969.4,1.1217]
[1761281252724,0.00314091,3969.6,3969.5,1.57506]
[1761281253022,0.00314091,3969.6,3969.5,1.60971837]
[1761281255814,1.05174091,3969.6,3969.5,0.03465837]
[1761281256323,1.05174091,3969.6,3969.5,0.06931674]
[1761281257120,9.25954091,3969.6,3969.5,0.06931674]
[1761281257427,1.0486,3969.5,3969.0,0.00211866]
[1761281257622,4.2564,3969.1,3969.0,0.00211866]
[1761281261821,9.2564,3969.1,3969.0,0.00211866]
[1761281262414,0.4544,3969.0,3967.8,0.45354]
[1761281262619,1.0486,3968.4,3967.9,0.45354]
[1761281263025,1.0486,3968.4,3967.9,1.57524]
[1761281263419,1.0486,3968.4,3967.9,1.57753124]
[1761281263924,1.0486,3968.2,3967.9,1.57753124]
[1761281264118,1.0486,3968.2,3967.9,0.45583124]
[1761281264919,1.0486,3968.2,3967.9,0.00229124]
[1761281265728,4.2564,3968.0,3967.9,0.00229124]
[1761281266425,0.4544,3968.3,3967.9,1.12399124]
[1761281266426,1.0486,3968.2,3967.9,1.12399124]
[1761281266728,1.0486,3968.6,3968.0,1.15635837]
[1761281267122,1.0486,3968.6,3968.0,1.60987837]
[1761281267615,1.0486,3968.6,3968.3,0.03465837]
[1761281268420,3.2078,3968.4,3968.3,0.03465837]
[1761281268616,4.2564,3968.4,3968.3,0.03465837]
[1761281269116,4.44777529,3968.4,3968.3,0.03465837]
[1761281269324,4.2564,3968.4,3968.3,0.03465837]
[1761281270628,4.44772837,3968.4,3968.3,0.03465837]
[1761281271818,4.44772837,3968.4,3967.0,0.64850654]
[1761281271819,1.503,3968.3,3967.0,0.64850654]
[1761281272132,1.503,3968.3,3966.3,1.1217]
[1761281272133,1.0486,3966.8,3966.3,3.85630654]
[1761281272423,1.0486,3966.8,3965.9,0.45377]
[1761281272821,1.0486,3966.4,3965.9,0.45377]
[1761281273226,1.05125246,3966.4,3965.9,0.0031518]
[1761281273732,0.4544,3966.2,3965.9,0.0031518]
[1761281273919,1.0486,3966.1,3965.9,0.0031518]
[1761281274519,4.2564,3966.1,3965.9,0.0031518]
[1761281274723,1.0486,3966.0,3965.9,0.0031518]
[1761281276420,1.0486,3965.9,3964.9,3.2078]
[1761281276626,1.0486,3965.3,3964.6,0.45392]
[1761281277019,1.0486,3965.3,3964.8,0.45389]
[1761281277226,1.0486,3965.3,3964.9,1.1217]
[1761281277427,1.0486,3965.3,3964.9,0.00215466]
[1761281278930,1.0486,3965.3,3964.5,2.66384466]
[1761281279526,1.0486,3965.3,3964.7,0.4539]
[1761281280133,1.0486,3965.3,3964.7,0.00284366]
[1761281281436,1.377,3964.8,3964.7,0.00284366]
[1761281282536,0.9774,3964.8,3964.7,0.00284366]
[1761281283935,0.4544,3965.5,3964.7,0.00284366]
[1761281283936,0.9774,3965.3,3965.1,0.45386]
[1761281284128,1.4318,3965.5,3965.2,4.35577224]
[1761281284436,0.9774,3965.5,3965.4,1.0353]
[1761281284636,0.9774,3965.7,3965.5,1.0353]
[1761281284833,0.9774,3965.7,3965.4,0.45382]
[1761281285034,0.9774,3965.7,3965.2,3.32048224]
[1761281285341,0.9774,3965.7,3965.2,4.35578224]
[1761281286231,0.9774,3965.7,3965.3,0.45383]
[1761281286830,0.9774,3965.7,3965.3,1.48913]
[1761281287231,0.9774,3965.7,3965.3,1.0353]
[1761281287432,0.9774,3966.1,3965.7,1.0353]
[1761281287631,0.9774,3966.1,3966.0,1.0353]
[1761281287835,0.9774,3966.1,3965.3,3.66164]
[1761281288429,0.9774,3966.1,3965.3,3.2078]
[1761281288641,0.9774,3965.7,3964.9,4.2431]
[1761281288942,0.9774,3965.7,3965.2,0.45384]
[1761281289942,1.377,3964.8,3964.7,2.8694759]
[1761281290244,0.9774,3964.8,3964.7,3.9047759]
[1761281290440,0.9774,3965.3,3964.7,3.9047759]
[1761281290745,0.9774,3965.3,3965.0,4.2431]
[1761281291336,0.9774,3965.3,3965.0,3.2078]
[1761281291532,3.2078,3965.3,3964.7,3.3233759]
[1761281291737,1.377,3964.8,3964.7,0.00284366]
[1761281294845,4.5848,3964.8,3964.7,0.00284366]
[1761281297741,9.4848,3964.8,3964.7,0.00284366]
[1761281297942,0.9774,3964.7,3963.6,0.45403]
[1761281298143,0.9774,3964.1,3963.6,0.45403]
[1761281298349,1.377,3963.6,3963.5,5.71650686]
[1761281299040,0.98040505,3963.6,3963.5,0.00322929]
[1761281299342,0.98040505,3963.6,3963.5,1.49257929]
[1761281299538,0.98040505,3963.6,3963.5,1.03852929]
[1761281299738,0.9774,3963.5,3962.8,0.02523468]
[1761281299946,0.9774,3963.1,3962.9,1.0353]
[1761281300146,3.2078,3963.2,3962.9,2.96281686]
[1761281300343,0.00300505,3963.6,3963.2,1.0353]
[1761281300544,0.00300505,3963.6,3963.1,3.2078]
[1761281300545,0.98040505,3963.6,3963.4,1.0353]
[1761281300740,0.98040505,3963.6,3963.4,1.0372124]
[1761281300941,0.98040505,3963.6,3963.5,0.03469]
[1761281301344,0.98040505,3963.6,3963.5,1.06999]
[1761281301645,0.98040505,3963.6,3963.5,0.03469]
[1761281301844,1.38000505,3963.6,3963.5,0.03469]
[1761281307543,0.9049,3964.0,3963.5,8.94419686]
[1761281307744,3.2078,3965.3,3964.8,0.45389]
[1761281307950,3.2078,3965.3,3965.0,0.03469]
[1761281308753,3.21030535,3965.3,3965.0,0.03469]
[1761281308954,3.21030535,3965.3,3965.1,0.03469]
[1761281309354,22.709,3966.7,3965.1,0.03469]
[1761281309355,3.2078,3965.7,3965.1,0.03469]
[1761281309654,0.2678,3965.4,3965.1,0.03469]
[1761281309952,0.92761,3965.2,3964.0,4.5437]
[1761281310251,0.18859715,3965.1,3964.0,4.99769]
[1761281310553,0.18859715,3965.0,3964.0,4.99769]
[1761281310754,0.3523,3964.8,3964.4,3.2078]
[1761281311144,0.00297395,3965.2,3964.5,0.9704]
[1761281311352,0.18864398,3965.1,3964.9,0.9704]
[1761281311547,0.00297395,3965.2,3964.9,0.9704]
[1761281312244,0.00297395,3965.2,3965.0,0.03469]
[1761281312448,0.96527395,3965.2,3965.0,1.00509]
[1761281312648,0.96527395,3965.2,3965.0,0.03469]
[1761281313557,0.96527395,3965.2,3965.1,0.03469]
[1761281316059,0.00297395,3965.2,3965.1,1.45895]
[1761281316257,0.00297395,3965.2,3965.1,1.00509]
[1761281317157,0.00297395,3965.2,3965.1,1.45895]
[1761281317346,0.96527395,3965.2,3965.1,0.03469]
[1761281317652,0.9623,3965.1,3964.1,0.9704]
[1761281317856,0.9623,3964.9,3964.3,0.9704]
[1761281320459,0.9623,3964.7,3964.3,0.9704]
[1761281321561,0.9623,3964.7,3964.5,0.03469]
[1761281322062,1.15122907,3964.6,3964.5,0.03469]
[1761281322458,1.15122907,3964.6,3964.0,3.2078]
[1761281322765,0.9623,3964.4,3964.0,3.2078]
[1761281324065,0.9623,3964.1,3963.5,3.2078]
[1761281324362,0.9623,3964.1,3963.6,0.3761]
[1761281324559,0.9623,3964.1,3963.7,0.9704]
[1761281326067,0.9623,3964.1,3963.5,3.2078]
[1761281326866,1.2301,3963.6,3963.5,3.2078]
[1761281327972,0.9623,3963.6,3963.5,3.2078]
[1761281328865,0.9623,3963.9,3963.4,0.0019124]
[1761281329069,0.9623,3963.5,3963.4,0.0019124]
[1761281329861,0.9623,3963.5,3963.4,0.9723124]
[1761281330067,0.9623,3963.9,3963.6,0.9704]
[1761281330367,3.2078,3964.1,3963.6,0.9704]
[1761281330563,3.2078,3964.5,3963.7,0.9704]
[1761281330764,0.9623,3964.4,3963.7,0.9704]
[1761281331976,0.9623,3964.4,3964.0,0.02122147]
[1761281332975,0.9623,3964.4,3964.2,0.02122147]
[1761281334067,0.9623,3964.4,3964.3,0.02122147]
[1761281334267,2.1509,3964.4,3964.3,0.02122147]
[1761281334963,6.1886,3964.4,3963.6,3.2078]
[1761281335164,2.1509,3963.5,3963.4,0.0019124]
[1761281335372,1.1886,3963.5,3963.4,1.6229124]
[1761281335770,2.1509,3963.5,3963.4,1.6229124]
[1761281335966,2.1509,3963.5,3963.4,0.0019124]
[1761281336664,1.2301,3963.5,3963.4,0.0019124]
[1761281337470,0.9623,3963.4,3962.6,4.1782]
[1761281337980,0.9623,3963.4,3962.6,3.2078]
[1761281338476,0.9623,3963.4,3962.8,0.02826307]
[1761281339074,0.6433,3962.9,3962.8,3.78636307]
[1761281339475,0.6433,3963.2,3963.1,3.7581]
[1761281339678,3.5599,3963.2,3963.1,3.7581]
[1761281339874,3.5599,3962.9,3962.8,0.02826307]
[1761281341778,3.5599,3962.9,3962.8,2.52066307]
[1761281342881,3.5599,3962.9,3962.8,0.02826307]
[1761281344684,1.7305,3962.8,3961.8,5.7002]
[1761281344886,0.7562,3963.0,3961.8,2.4924]
[1761281344887,3.5599,3961.9,3961.8,2.4924]
[1761281345081,1.8294,3961.7,3961.6,2.4924]
[1761281345387,1.8294,3961.7,3961.6,3.7581]
[1761281345683,1.8316548,3961.7,3961.6,3.76081508]
[1761281346070,0.0022548,3961.7,3961.6,3.76081508]
[1761281346478,1.8294,3962.4,3961.8,1.8904]
[1761281346783,0.6433,3962.6,3962.5,3.196]
[1761281346973,3.5599,3962.6,3962.5,3.196]
[1761281347174,3.5599,3962.6,3962.5,2.4924]
[1761281347380,3.5599,3962.6,3962.5,3.7581]
[1761281347570,3.56258779,3962.6,3962.5,3.7581]
[1761281347773,0.64598779,3962.6,3962.5,4.4617]
[1761281348884,3.56258779,3962.6,3962.5,3.7581]
[1761281349086,1.83208779,3962.6,3962.3,3.8098]
[1761281349285,2.9166,3962.5,3962.4,2.4924]
[1761281349589,3.5599,3962.5,3962.4,2.4924]
[1761281350079,3.5599,3962.5,3962.4,0.602]
[1761281350271,1.7305,3962.4,3962.3,3.2078]
[1761281350476,3.5599,3962.4,3962.3,3.2078]
[1761281351282,1.8294,3962.1,3962.0,1.8904]
[1761281351487,3.5599,3962.1,3962.0,3.7581]
[1761281351694,1.7305,3962.0,3961.9,3.2078]
[1761281351988,4.3161,3962.0,3961.9,3.2078]
[1761281352382,1.8294,3962.0,3961.9,3.7581]
[1761281352893,0.6433,3962.0,3961.9,3.7581]
[1761281353075,3.5599,3962.0,3961.9,2.4924]
[1761281353275,3.5599,3961.8,3961.7,1.8904]
[1761281353985,3.5599,3961.7,3961.6,2.49511508]
[1761281354287,0.6433,3961.7,3961.6,3.76081508]
[1761281354687,3.5599,3961.7,3961.6,3.76081508]
[1761281355388,0.6433,3961.7,3961.6,3.76081508]
[1761281355779,3.5599,3961.7,3961.6,3.76081508]
[1761281356078,3.5599,3961.7,3961.6,0.00271508]
[1761281356684,3.5599,3961.7,3961.6,2.49511508]
[1761281356884,3.5599,3961.7,3961.6,0.00271508]
[1761281357087,3.5599,3961.7,3961.6,3.76081508]
[1761281357284,3.5599,3961.7,3961.6,2.49511508]
[1761281357484,3.5599,3961.7,3961.6,0.00271508]
[1761281357991,3.5599,3961.7,3961.6,2.49511508]
[1761281358294,3.5599,3961.7,3961.6,0.00271508]
[1761281359280,0.6433,3960.6,3960.5,0.7036]
[1761281359584,0.6433,3961.1,3961.0,4.4617]
[1761281359791,2.4847,3961.5,3961.4,3.7581]
[1761281359792,3.5599,3961.5,3961.4,3.7581]
[1761281360287,1.7305,3961.4,3961.1,2.4924]
[1761281360486,0.6433,3961.4,3961.3,3.7581]
[1761281361279,3.5599,3961.2,3961.1,0.00251476]
[1761281361481,3.5599,3961.4,3961.3,2.4924]
[1761281361791,1.7305,3961.3,3961.1,2.4924]
[1761281361992,3.5599,3961.2,3961.1,2.4924]
[1761281362493,3.5599,3961.2,3961.1,2.49468071]
[1761281362794,3.5599,3961.2,3961.1,0.60428071]
[1761281362993,3.5599,3961.2,3961.1,0.00228071]
[1761281363195,3.5599,3961.2,3961.1,2.49468071]
[1761281363795,1.8294,3961.2,3961.1,3.76038071]
[1761281363994,5.5816,3961.9,3961.2,1.8904]
[1761281364292,3.5599,3961.8,3961.7,0.602]
[1761281364496,3.5599,3961.8,3961.7,2.4924]
[1761281366288,3.5599,3961.8,3961.7,3.7581]
[1761281366894,0.6433,3961.8,3961.7,3.7581]
[1761281367083,3.5599,3961.8,3961.7,3.7581]
[1761281367491,3.5599,3961.8,3961.7,0.602]
[1761281367691,0.6433,3961.8,3961.7,3.3184]
[1761281369587,0.6433,3961.8,3961.6,3.2078]
[1761281369588,5.4125,3962.3,3962.2,1.0706]
[1761281369794,5.4125,3962.3,3962.2,3.9457]
[1761281370896,1.64418779,3962.6,3962.0,0.6486]
[1761281370897,3.2078,3963.1,3962.5,4.5943]
[1761281371100,3.2078,3963.9,3963.8,3.9457]
[1761281371398,3.2078,3964.8,3964.2,1.7166]
[1761281371593,4.8493,3964.8,3964.2,1.7166]
[1761281371793,1.6415,3964.7,3963.8,1.7166]
[1761281371998,1.64352415,3964.7,3963.8,1.7185638]
[1761281372195,1.64352415,3964.7,3964.2,1.7166]
[1761281373393,0.00202415,3964.7,3964.2,1.7166]
[1761281375695,1.64352415,3964.7,3964.2,1.7166]
[1761281377004,2.75662415,3964.7,3964.6,3.9457]
[1761281377203,3.84822415,3964.7,3964.6,3.9457]
[1761281377403,2.20672415,3964.7,3964.6,3.9457]
[1761281377704,0.00202415,3964.7,3964.6,3.9457]
[1761281379303,3.84822415,3964.7,3964.6,3.9457]
[1761281379500,1.6415,3964.6,3964.4,1.7166]
[1761281379808,3.8462,3964.5,3964.4,2.8751]
[1761281384212,3.8462,3964.5,3963.5,0.6486]
[1761281384213,2.2047,3964.3,3964.2,2.8751]
[1761281384509,3.8462,3964.3,3964.2,3.9457]
[1761281385710,2.2047,3964.3,3964.2,3.9457]
[1761281386416,1.1131,3964.3,3964.2,3.9457]
[1761281386615,5.9624,3964.6,3964.3,1.7166]
[1761281386814,4.3209,3964.6,3964.5,4.5943]
[1761281387303,7.054,3964.6,3964.5,4.5943]
[1761281387506,7.054,3964.6,3964.5,3.9457]
[1761281387916,7.054,3964.6,3964.5,2.8751]
[1761281388118,7.054,3964.6,3964.5,1.1585]
[1761281388316,7.054,3964.6,3964.5,2.8751]
[1761281388609,7.054,3964.6,3964.5,3.9457]
[1761281388817,5.4125,3964.6,3964.5,4.5943]
[1761281389211,3.2078,3964.6,3964.5,4.5943]
[1761281389414,7.054,3964.6,3964.5,4.5943]
[1761281389615,2.2047,3964.3,3964.2,2.8751]
[1761281389914,1.1131,3964.3,3964.2,3.9457]
[1761281390509,4.8493,3964.6,3964.2,3.9457]
[1761281390708,5.9624,3964.6,3964.5,4.5943]
[1761281391804,4.3209,3964.6,3964.5,4.5943]
[1761281392008,0.00202415,3964.7,3964.6,3.9457]
[1761281392419,1.11512415,3964.7,3964.6,3.9457]
[1761281393610,3.84822415,3964.7,3964.6,3.9457]
[1761281393912,1.1131,3964.4,3964.3,2.8751]
[1761281394218,3.8462,3964.4,3964.3,3.9457]
[1761281397112,2.2047,3964.4,3964.3,3.9457]
[1761281397806,0.00202415,3964.7,3964.6,3.9457]
[1761281398407,0.19322501,3964.7,3964.6,3.9457]
[1761281399013,0.00202415,3964.7,3964.6,3.9457]
[1761281399412,0.19355366,3964.7,3964.6,3.9457]
[1761281399824,0.00202415,3964.7,3964.6,3.9457]
[1761281400418,0.19390985,3964.7,3964.6,3.9457]
[1761281402521,1.32600985,3964.7,3964.6,3.9457]
[1761281402721,0.19390985,3964.7,3964.6,3.9457]
[1761281404622,1.4803,3966.5,3966.1,2.1744]
[1761281404927,1.1321,3966.4,3966.3,3.6436]
[1761281405226,2.1032,3966.4,3966.3,3.6436]
[1761281405420,4.3399,3966.8,3966.5,0.5826]
[1761281405625,0.00286398,3966.8,3966.7,3.6436]
[1761281405817,0.00286398,3966.8,3966.7,6.85404981]
[1761281406120,3.2078,3967.7,3967.6,3.6436]
[1761281406427,0.022,3967.8,3967.7,1.4692]
[1761281407018,0.02427555,3967.8,3967.7,1.4692]
[1761281407719,3.2078,3968.6,3968.5,1.4692]
[1761281408024,3.2078,3969.1,3969.0,0.5826]
[1761281408225,1.4803,3969.7,3969.0,0.5826]
[1761281408226,3.2078,3969.7,3969.1,1.4692]
[1761281408419,4.6881,3969.7,3969.1,1.4692]
[1761281408622,1.4803,3969.6,3969.1,1.4692]
[1761281408822,3.21000703,3969.7,3969.1,1.4692]
[1761281409124,1.4803,3969.6,3969.1,1.4692]
[1761281409530,3.21000703,3969.7,3969.1,1.4692]
[1761281411333,3.2078,3969.3,3969.1,1.4692]
[1761281413433,1.48250703,3969.7,3969.1,1.4692]
[1761281413919,0.00220703,3969.7,3969.1,1.4692]
[1761281414320,1.13430703,3969.7,3969.6,4.2262]
[1761281414525,1.13430703,3969.7,3969.6,4.22846768]
[1761281415622,0.00220703,3969.7,3969.6,4.22846768]
[1761281416736,3.2078,3970.3,3970.2,3.6436]
[1761281417734,3.2101715,3970.3,3970.2,3.6436]
[1761281419222,3.2101715,3970.3,3970.0,2.5943]
[1761281419223,3.5835,3970.1,3970.0,2.5943]
[1761281420029,2.1032,3970.1,3970.0,3.6436]
[1761281420436,1.1321,3970.1,3970.0,4.2262]
[1761281421031,4.3422715,3970.3,3970.2,2.1744]
[1761281421227,1.4803,3969.8,3967.2,3.2078]
[1761281421432,1.4803,3967.7,3966.7,3.2078]
[1761281422126,1.4803,3967.7,3966.7,3.21098709]
[1761281422424,1.4803,3967.7,3967.1,3.2078]
[1761281422622,3.8433,3967.8,3967.2,0.4262]
[1761281422623,3.2078,3967.8,3967.2,0.4262]
[1761281423035,3.2078,3967.8,3966.7,0.00318709]
[1761281423036,1.4803,3968.1,3967.5,3.2078]
[1761281423340,1.4803,3967.5,3966.7,0.00318709]